[Event "GCT 11th Sinquefield Cup 2024"]
[Site "Saint Louis"]
[Date "2024.08.22"]
[Round "4.3"]
[White "Giri, Anish"]
[Black "Praggnanandhaa R"]
[Result "1/2-1/2"]
[ECO "A29"]
[WhiteElo "2746"]
[BlackElo "2749"]
[Annotator "TA"]
[PlyCount "66"]
[EventDate "2024.08.09"]
[EventType "tourn"]
[EventCountry "USA"]
[SourceTitle "playchess.com"]
[Source "ChessBase"]
[SourceQuality "1"]
[TimeControl "7200+30"]

{[%evp 15,66,-6,6,0,1,0,16,-4,11,-3,2,0,38,0,16,22,12,16,24,0,9,0,4,0,0,0,0,0,0,0,0,0,0,0,0,0,0,0,0,0,0,0,0,0,0,0,0,0,0,0,0,0,0]} 1. c4 {[%emt 0:00:03]} Nf6 {[%emt 0:01:21]} 2. Nc3 {[%emt 0:00:05]} e5 {[%emt 0:00:19]} 3. Nf3 {[%emt 0:00:04]} Nc6 {[%emt 0:00:04]} 4. d3 {[%emt 0:00:04]} d5 {[%emt 0:00:05]} 5. cxd5 {[%emt 0:00:03]} Nxd5 {[%emt 0:00:03]} 6. g3 {[%emt 0:00:06]} Bc5 {[%emt 0:01:16]} 7. Bg2 {[%emt 0:00:12]} O-O {[%emt 0:00:11]} 8. O-O {[%emt 0:00:18]} h6 {[%emt 0:00:45]} 9. Nxd5 {[%emt 0:00:12]} Qxd5 {[%emt 0:00:03]} 10. a3 {[%emt 0:00:27]} a5 {[%emt 0:02:17]} 11. Bd2 {[%emt 0:00:17]} Qe6 {[%emt 0:05:53]} 12. Rc1 {[%emt 0:17:36]} Qe7 {[%emt 0:05:58]} 13. Qa4 {[%emt 0:20:54]} Ra6 {[%emt 0:12:34]} 14. Qh4 {[%emt 0:07:02]} Re8 {[%emt 0:18:41] [#]} 15. b4 $1 {[%emt 0:17:55]} axb4 {[%emt 0:01:29]} 16. axb4 {[%emt 0:00:24]} Qxh4 {[%emt 0:11:46]} ({But not} 16... Bxb4 17. Rxc6 Qxh4 18. Nxh4 $16 (18. gxh4 Rxc6 19. Bxb4 Bd7 $14)) 17. Nxh4 {[%emt 0:15:55]} Ra2 $1 {[%emt 0:01:00] The position is equal.} 18. Rxc5 {[%emt 0:07:17]} Rxd2 {[%emt 0:00:21]} 19. Re1 {[%emt 0:04:09]} Nd4 {[%emt 0:07:42]} 20. Nf3 {[%emt 0:02:53]} Rxe2 {[%emt 0:02:13]} 21. Rxe2 {[%emt 0:00:06]} Nxe2+ {[%emt 0:00:03]} 22. Kf1 {[%emt 0:00:02]} Nd4 {[%emt 0:11:39]} 23. Nxd4 {[%emt 0:00:21]} exd4 {[%emt 0:00:02]} 24. Rxc7 $11 {[%emt 0:00:06][%cal Oc7c4][%mdl 4096] Endgame. KRB-KRB} Bf5 {[%emt 0:00:06]} 25. Be4 {[%emt 0:00:38]} ({Much weaker is} 25. Bxb7 Bxd3+ 26. Kg2 Rd8 $15) 25... Bxe4 {[%emt 0:00:14]} 26. dxe4 {[%emt 0:00:02]} Rxe4 {[%emt 0:00:06]} 27. Rxb7 {[%emt 0:00:02] KR-KR} d3 {[%emt 0:00:09] [#] And now ...d2 would win.} 28. Rd7 {[%emt 0:00:02]} Rxb4 {[%emt 0:00:03]} 29. Rxd3 {[%emt 0:00:03]} Ra4 {[%emt 0:00:10]} 30. Rc3 {[%emt 0:00:02]} Rb4 {[%emt 0:00:02]} 31. Rd3 {[%emt 0:00:01]} Ra4 {[%emt 0:00:05]} 32. Rc3 {[%emt 0:00:01]} Rb4 {[%emt 0:00:05]} 33. Rd3 {[%emt 0:00:03]} Ra4 {[%emt 0:00:16] An interesting draw.   Weighted Error Value: White=0.04 (flawless) /Black=0.07 (flawless) .  Inaccurate:     	White=1     	Black=1      OK:         	White=7     	Black=11     Best:        	White=1     	Black=1      Strong:       	---       	Black=1} 1/2-1/2

[Event "GCT 11th Sinquefield Cup 2024"]
[Site "Saint Louis"]
[Date "2024.08.22"]
[Round "4.4"]
[White "Vachier-Lagrave, Maxime"]
[Black "Abdusattorov, Nodirbek"]
[Result "1/2-1/2"]
[ECO "C70"]
[WhiteElo "2721"]
[BlackElo "2762"]
[Annotator "TA"]
[PlyCount "56"]
[EventDate "2024.08.09"]
[EventType "tourn"]
[EventCountry "USA"]
[SourceTitle "playchess.com"]
[Source "ChessBase"]
[SourceQuality "1"]
[TimeControl "7200+30"]

{[%evp 10,56,46,28,36,33,44,0,9,0,3,0,3,18,18,0,0,0,0,0,0,0,7,4,4,2,7,0,3,0,4,3,5,4,3,4,5,2,2,2,7,2,1,0,0,0,6,0,0]} 1. e4 {[%emt 0:00:02]} e5 {[%emt 0:00:23]} 2. Nf3 {[%emt 0:00:02]} Nc6 {[%emt 0:00:34]} 3. Bb5 {[%emt 0:00:09]} Bc5 {[%emt 0:00:08]} 4. O-O {[%emt 0:09:58]} d6 {[%emt 0:00:06]} 5. c3 {[%emt 0:02:55]} a6 {[%emt 0:00:09]} 6. Ba4 {[%emt 0:09:26]} Bd7 {[%emt 0:00:12][%cal Bc8d7,Bd7c6,Bc6e4][%mdl 32]} 7. d4 {[%emt 0:00:10]} Ba7 {[%emt 0:00:04]} 8. Bxc6 {[%emt 0:12:43]} Bxc6 {[%emt 0:00:08] The position is equal.} 9. dxe5 {[%emt 0:00:03]} dxe5 {[%emt 0:28:15]} 10. Nxe5 {[%emt 0:00:12]} Qxd1 {[%emt 0:00:07]} 11. Rxd1 {[%emt 0:00:07] And now Nxc6 would win.} Bxe4 {[%emt 0:00:01]} 12. Re1 {[%emt 0:00:23]} f5 {[%emt 0:00:17]} 13. Nd2 {[%emt 0:02:40]} Nf6 {[%emt 0:00:58]} 14. Nxe4 {[%emt 0:00:09]} Nxe4 {[%emt 0:01:38]} 15. Be3 {[%emt 0:02:09]} Bxe3 {[%emt 0:00:03]} 16. Rxe3 {[%emt 0:00:08] [#] f3 would now be deadly.} O-O {[%emt 0:00:14]} 17. Rd1 {[%emt 0:01:54]} Nc5 {[%emt 0:08:03]} 18. Nd7 {[%emt 0:18:13]} Rad8 {[%emt 0:04:05]} 19. Re7 {[%emt 0:00:39]} Rxd7 {[%emt 0:00:01]} (19... Rf7 20. Nf6+ Kf8 21. Rxf7+ (21. Rxd8+ Kxe7 22. Rd5 Na4 $15) 21... Kxf7 22. Rxd8 $18) 20. Rdxd7 {[%emt 0:00:17]} Nxd7 {[%emt 0:00:02]} 21. Rxd7 $11 {[%emt 0:00:10][%mdl 4096] Endgame. KR-KR} Rf7 $1 {[%emt 0:00:02]} 22. Rd8+ {[%emt 0:00:09]} Rf8 {[%emt 0:00:03]} 23. Rd5 {[%emt 0:00:32]} c6 {[%emt 0:00:07]} 24. Rd7 {[%emt 0:00:16]} Rf7 $1 {[%emt 0:00:05]} 25. Rd8+ {[%emt 0:00:05]} Rf8 {[%emt 0:00:04]} 26. Rd7 {[%emt 0:02:18]} Rf7 $1 {[%emt 0:00:04]} 27. Rd8+ {[%emt 0:00:07]} Rf8 {[%emt 0:00:03]} 28. Rd7 {[%emt 0:00:16]} Rf7 $1 {[%emt 0:00:04] Weighted Error Value: White=0.05 (flawless) /Black=0.01 (flawless) .  Inaccurate:     	White=1     	---        OK:         	White=11    	Black=9      Best:        	---       	Black=2      Strong:       	---       	Black=4} 1/2-1/2

[Event "GCT 11th Sinquefield Cup 2024"]
[Site "Saint Louis"]
[Date "2024.08.22"]
[Round "4.5"]
[White "Gukesh D"]
[Black "Firouzja, Alireza"]
[Result "1/2-1/2"]
[ECO "C67"]
[WhiteElo "2766"]
[BlackElo "2751"]
[Annotator "TA"]
[PlyCount "146"]
[EventDate "2024.08.09"]
[EventType "tourn"]
[EventCountry "USA"]
[SourceTitle "playchess.com"]
[Source "ChessBase"]
[SourceQuality "1"]
[TimeControl "7200+30"]

1. e4 {[%emt 0:00:04]} e5 {[%emt 0:00:10]} 2. Nf3 {[%emt 0:00:07]} Nc6 {[%emt 0:00:03]} 3. Bb5 {[%emt 0:00:05]} Nf6 {[%emt 0:00:06]} 4. O-O {[%emt 0:00:09]} Nxe4 {[%emt 0:00:05]} 5. d4 {[%emt 0:00:04]} Nd6 {[%emt 0:00:05]} 6. Bxc6 {[%emt 0:00:05]} dxc6 {[%emt 0:00:04]} 7. dxe5 {[%emt 0:00:04]} Nf5 {[%emt 0:00:08]} 8. Qxd8+ {[%emt 0:00:04]} Kxd8 {[%emt 0:00:06]} 9. Nc3 {[%emt 0:00:04]} Ke8 {[%emt 0:05:03]} 10. h3 {[%emt 0:00:20]} Ne7 {[%emt 0:03:20]} 11. Rd1 {[%emt 0:26:28]} Ng6 {[%emt 0:09:45]} 12. b3 {[%emt 0:00:40] C67: Ruy Lopez: Berlin Defence: 4 0-0 Nxe4.} Be7 {[%emt 0:05:43]} 13. Bb2 {[%emt 0:05:37]} h5 {[%emt 0:00:58]} 14. Re1 {[%emt 0:05:16]} h4 {[%emt 0:04:17]} 15. Ne4 {[%emt 0:03:55]} Kf8 {[%emt 0:02:29]} 16. Rad1 {[%emt 0:02:13]} Rb8 $146 {[%emt 0:09:17]} ({Predecessor:} 16... Rh5 17. Nd6 Nf4 18. Nxc8 Rxc8 19. Re4 Ne6 20. Nd4 Ng5 21. Rg4 c5 22. Ne2 Rd8 23. Rxd8+ Bxd8 {½-½ Efimenko,Z (2652)-Melkumyan,H (2633) TUR-chT2 Konya 2015 (7.3)}) 17. Nf6 {[%emt 0:13:03]} Nf4 {[%emt 0:13:48]} 18. Nd7+ {[%emt 0:13:58]} Bxd7 {[%emt 0:00:50]} 19. Rxd7 {[%emt 0:00:06]} Ke8 {[%emt 0:40:01]} 20. Rdd1 {[%emt 0:02:53]} c5 {[%emt 0:02:06]} 21. Nd2 {[%emt 0:08:19]} Kd7 {[%emt 0:05:13]} 22. Nc4+ {[%emt 0:05:13]} Ke6 {[%emt 0:12:32]} 23. Rd6+ {[%emt 0:05:36]} cxd6 {[%emt 0:01:36]} 24. exd6+ {[%emt 0:00:02]} Kd5 {[%emt 0:00:18]} 25. Re5+ {[%emt 0:18:47]} Kc6 {[%emt 0:00:22]} 26. Rxe7 {[%emt 0:00:04]} f6 {[%emt 0:04:45]} 27. Rxg7 {[%emt 0:01:29]} Rhg8 {[%emt 0:01:12]} 28. Rc7+ {[%emt 0:01:21]} Kd5 {[%emt 0:00:05]} 29. Kf1 {[%emt 0:04:20]} b5 {[%emt 0:01:10]} 30. Ne3+ {[%emt 0:00:08]} Kxd6 {[%emt 0:00:04]} 31. Rh7 {[%emt 0:01:19]} Rbf8 {[%emt 0:03:23]} 32. Rxh4 {[%emt 0:01:16]} Nd5 {[%emt 0:01:26]} 33. Nxd5 {[%emt 0:01:56]} Kxd5 {[%emt 0:00:03]} 34. c4+ {[%emt 0:00:45]} bxc4 {[%emt 0:00:02]} 35. Rxc4 {[%emt 0:00:05]} f5 {[%emt 0:00:36]} 36. h4 {[%emt 0:03:05]} Rg4 {[%emt 0:03:30]} 37. h5 {[%emt 0:02:29]} f4 {[%emt 0:01:30]} 38. h6 {[%emt 0:01:32]} Rh4 {[%emt 0:00:07]} 39. g3 {[%emt 0:04:29]} Rh2 {[%emt 0:00:43]} (39... fxg3 40. Rxh4 gxf2 41. h7 $18) (39... Rxh6 $2 40. Bg7 Rh1+ 41. Kg2 $18) (39... Rh1+ $1 $14 40. Kg2 fxg3 (40... Rxh6 $2 41. Bg7 $18) 41. fxg3 (41. Kxh1 gxf2 42. Rc1 f1=R+ 43. Rxf1 Rxf1+ 44. Kg2 $16)) 40. Bg7 $16 {[%emt 0:00:22]} (40. Rxf4 $2 Rxf4 41. gxf4 Rxh6 $19) 40... Rf7 {[%emt 0:02:07]} 41. gxf4 {[%emt 0:00:35]} (41. Rxf4 $6 Rxf4 42. gxf4 Ke4 $14) 41... Rf5 {[%emt 0:00:35]} (41... Rb7 $16 {keeps fighting.} 42. f5 Rh5) 42. Ke2 $18 {[%emt 0:00:48]} a6 {[%emt 0:01:02]} 43. Ra4 {[%emt 0:00:47]} Rh3 {[%emt 0:00:21]} 44. f3 $1 {[%emt 0:01:06]} (44. Rxa6 Rxf4 45. Ra4 Rf5 $11) 44... Rh1 {[%emt 0:00:13]} 45. Ke3 {[%emt 0:01:02]} (45. Rxa6 $6 Rxf4 46. Ke3 Rf7 $16) 45... Re1+ {[%emt 0:01:03]} 46. Kf2 {[%emt 0:00:01]} Rh1 {[%emt 0:00:04]} 47. Re4 {[%emt 0:01:12]} ({Don't do} 47. Rxa6 Rxf4 48. Rg6 Rfh4 49. Rg5+ Ke6 50. Rxc5 R4h2+ 51. Ke3 Rxa2 $16) 47... Kd6 {[%emt 0:00:20]} 48. Ke3 {[%emt 0:00:32]} Re1+ {[%emt 0:00:42] [#]} 49. Kd2 $1 {[%emt 0:00:16]} ({Don't play} 49. Kd3 Rd5+ 50. Kc2 Rh1 $16) 49... Rh1 {[%emt 0:00:04]} 50. Ra4 {[%emt 0:00:41]} Kd5 {[%emt 0:00:10]} 51. Rxa6 {[%emt 0:00:17]} (51. Ke2 $18) 51... Rxf4 $14 {[%emt 0:00:06]} 52. Ke3 {[%emt 0:00:02]} Rf7 {[%emt 0:02:08]} 53. Rg6 {[%emt 0:01:08]} ({White should play} 53. Ra4 $1 $14) 53... Rh3 $1 $11 {[%emt 0:00:19]} 54. Bf6 {[%emt 0:00:32]} Ke6 $1 {[%emt 0:00:25]} 55. Bh4+ {[%emt 0:00:33]} Kf5 {[%emt 0:00:43]} 56. Rg5+ {[%emt 0:00:22]} Kf6 {[%emt 0:00:34]} 57. Rg4+ {[%emt 0:00:02]} (57. Rxc5+ $2 {loses.} Rxh4 58. Rc8 Re7+ (58... Rxh6 $2 59. Rc6+ Kg7 60. Rxh6 $19) 59. Kd3 Rxh6 60. Rf8+ Ke6 $19) 57... Ke6 {[%emt 0:00:12]} 58. Rg6+ {[%emt 0:00:17]} Kf5 {[%emt 0:00:20]} 59. Rg7 {[%emt 0:00:00]} Ke6 {[%emt 0:00:51]} 60. Rxf7 {[%emt 0:00:34]} Kxf7 {[%emt 0:00:04]} 61. Bg5 {[%emt 0:00:02]} Rh2 {[%emt 0:00:18]} 62. h7 {[%emt 0:02:15]} Rxh7 {[%emt 0:00:22]} 63. Kd3 {[%emt 0:00:31]} Rh3 {[%emt 0:00:24]} 64. Be3 {[%emt 0:00:28]} Rxf3 {[%emt 0:00:20]} 65. Ke4 {[%emt 0:00:01]} Rh3 {[%emt 0:00:39]} 66. Bxc5 {[%emt 0:00:08]} Ke6 {[%emt 0:00:03]} 67. Kd4 {[%emt 0:00:32]} Rh4+ {[%emt 0:00:17]} 68. Kc3 {[%emt 0:00:02]} Kd5 {[%emt 0:00:04]} 69. Ba7 {[%emt 0:00:04]} Kc6 {[%emt 0:00:24]} 70. a4 {[%emt 0:00:02]} Rxa4 $2 {[%emt 0:00:27][%mdl 8192]} (70... Kd5 $11 {and Black is okay.}) 71. bxa4 $18 {[%emt 0:00:01]} Kb7 {[%emt 0:00:04] [#]} 72. a5 $2 {[%emt 0:00:03]} ({White should try} 72. Bc5 $1 $18) 72... Kxa7 $11 {[%emt 0:00:03]} 73. a6 {[%emt 0:00:03]} Kxa6 {[%emt 0:00:02]} 1/2-1/2

[Event "GCT 11th Sinquefield Cup 2024"]
[Site "Saint Louis"]
[Date "2024.08.23"]
[Round "5.1"]
[White "Caruana, Fabiano"]
[Black "Vachier-Lagrave, Maxime"]
[Result "1/2-1/2"]
[ECO "B90"]
[WhiteElo "2793"]
[BlackElo "2721"]
[Annotator "TA"]
[PlyCount "90"]
[EventDate "2024.08.09"]
[EventType "tourn"]
[EventCountry "USA"]
[SourceTitle "playchess.com"]
[Source "ChessBase"]
[SourceQuality "1"]
[TimeControl "7200+30"]

{[%evp 19,90,26,28,9,11,22,17,8,12,13,16,4,38,29,33,10,25,11,27,20,15,7,12,0,0,0,0,0,12,0,23,28,25,21,23,18,29,18,24,21,14,0,0,0,0,0,0,0,0,0,0,0,0,0,0,0,0,0,0,0,0,0,0,0,0,0,0,0,0,0,0,0,0]} 1. e4 {[%emt 0:00:03]} c5 {[%emt 0:00:03]} 2. Nf3 {[%emt 0:00:05]} d6 {[%emt 0:00:03]} 3. d4 {[%emt 0:00:04]} cxd4 {[%emt 0:00:02]} 4. Nxd4 {[%emt 0:00:04]} Nf6 {[%emt 0:00:04]} 5. Nc3 {[%emt 0:00:04]} a6 {[%emt 0:00:02]} 6. Nb3 {[%emt 0:00:12]} g6 {[%emt 0:07:00] B90: Sicilian Najdorf: Unusual White 6th moves, 6 Be3 Ng4 and 6 Be3 e5.} 7. Be3 {[%emt 0:00:31]} Bg7 {[%emt 0:00:11]} 8. f3 {[%emt 0:00:34]} h5 {[%emt 0:06:35]} 9. Be2 $146 {[%emt 0:06:14]} ({Predecessor:} 9. Qd2 Nbd7 10. Be2 b5 11. O-O-O Bb7 12. Kb1 Rc8 13. Rhg1 Ne5 14. Qe1 Qc7 15. Bd4 {½-½ Ganerdene,S (2419)-Sasikiran,K (2647) Asia Nations online Cup final rapid 2020 (2.3)}) 9... Nbd7 {[%emt 0:03:33]} 10. O-O {[%emt 0:11:23]} b6 {[%emt 0:03:06]} 11. Qe1 {[%emt 0:08:58]} Bb7 {[%emt 0:00:42]} 12. a4 {[%emt 0:11:11]} Rc8 {[%emt 0:02:15]} 13. Qf2 {[%emt 0:00:59]} O-O {[%emt 0:00:18]} 14. Rfd1 {[%emt 0:01:24]} Qc7 {[%emt 0:01:32]} 15. Nd2 {[%emt 0:05:28]} Nc5 {[%emt 0:11:16]} 16. Nc4 {[%emt 0:27:56]} Nfd7 {[%emt 0:01:21]} 17. Bf1 {[%emt 0:04:35]} Ne5 {[%emt 0:03:20]} 18. Nxe5 {[%emt 0:02:32]} Bxe5 {[%emt 0:00:09]} 19. Bd4 {[%emt 0:01:05]} Nd7 {[%emt 0:03:41]} 20. Ra3 {[%emt 0:08:45]} Rfd8 {[%emt 0:08:05]} 21. Bxe5 {[%emt 0:03:06]} dxe5 {[%emt 0:01:37]} 22. Raa1 {[%emt 0:07:30]} e6 {[%emt 0:02:33]} 23. Rd2 {[%emt 0:01:34]} Nb8 {[%emt 0:02:48]} 24. Rad1 {[%emt 0:00:06]} Nc6 {[%emt 0:00:08]} 25. Nb1 {[%emt 0:03:43]} Rxd2 {[%emt 0:09:52]} 26. Rxd2 {[%emt 0:00:15]} Nd4 {[%emt 0:05:35]} 27. Na3 {[%emt 0:00:16]} Bc6 $1 {[%emt 0:00:10]} 28. Bxa6 {[%emt 0:09:16]} Ra8 {[%emt 0:00:15]} 29. Bf1 {[%emt 0:00:25]} Bxa4 {[%emt 0:07:26]} 30. h4 {[%emt 0:00:13]} b5 {[%emt 0:03:58]} 31. c3 {[%emt 0:03:39]} Nb3 {[%emt 0:01:22]} 32. Rd1 {[%emt 0:01:07]} b4 {[%emt 0:00:10]} 33. cxb4 {[%emt 0:00:06]} Nd4 {[%emt 0:00:13]} 34. Rd3 {[%emt 0:00:18]} Qe7 {[%emt 0:04:22]} 35. Nc4 {[%emt 0:02:56]} Bb5 {[%emt 0:00:32]} 36. Ra3 {[%emt 0:00:18]} Rxa3 {[%emt 0:07:51]} 37. bxa3 {[%emt 0:00:05]} Bxc4 {[%emt 0:00:06]} 38. Bxc4 {[%emt 0:00:03]} Qa7 {[%emt 0:00:07]} 39. Bf1 {[%emt 0:00:46]} Qxa3 {[%emt 0:00:12]} 40. Qd2 {[%emt 0:00:36]} Kh7 {[%emt 0:04:00]} ({Don't go for} 40... Qxf3 $2 41. Qxd4 Qg4 (41... Qxf1+ $2 42. Kxf1 exd4 43. b5 $18) 42. Qf2 (42. Qxe5 Qxh4 43. b5 Qe1 $18) 42... Qxe4 43. b5 $18) 41. Kf2 {[%emt 0:02:03]} Qa7 {[%emt 0:03:31]} 42. Kg3 {[%emt 0:01:19]} Qa1 {[%emt 0:00:56]} 43. Kf2 {[%emt 0:01:21]} Qa7 {[%emt 0:01:07]} 44. Kg3 {[%emt 0:00:09]} Qa1 {[%emt 0:00:05]} 45. Kf2 {[%emt 0:00:02]} Qa7 {[%emt 0:08:43]} 1/2-1/2

[Event "GCT 11th Sinquefield Cup 2024"]
[Site "Saint Louis"]
[Date "2024.08.23"]
[Round "5.2"]
[White "Firouzja, Alireza"]
[Black "Giri, Anish"]
[Result "1-0"]
[ECO "C54"]
[WhiteElo "2751"]
[BlackElo "2746"]
[Annotator "TA"]
[PlyCount "115"]
[EventDate "2024.08.09"]
[EventType "tourn"]
[EventCountry "USA"]
[SourceTitle "playchess.com"]
[Source "ChessBase"]
[SourceQuality "1"]
[TimeControl "7200+30"]

{[%evp 57,115,101,80,0,121,79,83,74,79,73,61,46,91,94,101,100,128,120,113,127,121,128,145,157,134,45,39,34,183,168,176,171,339,349,309,288,443,447,426,446,489,476,513,578,585,554,660,629,632,564,1300,1614,1747,1662,6524,6119,6846,6679,6108,5121]} 1. e4 {[%emt 0:00:09]} e5 {[%emt 0:00:04]} 2. Nf3 {[%emt 0:00:04]} Nc6 {[%emt 0:00:04]} 3. Bc4 {[%emt 0:00:05]} Nf6 {[%emt 0:00:05]} 4. d3 {[%emt 0:00:06]} Bc5 {[%emt 0:00:04]} 5. O-O {[%emt 0:00:11]} d6 {[%emt 0:00:38]} 6. c3 {[%emt 0:00:12]} a5 {[%emt 0:00:09] C54: Giuoco Piano: 4 c3 Nf6, main lines with 5 d4 and 5 d3.} 7. h3 {[%emt 0:00:35]} (7. Re1 O-O 8. Bg5 h6 9. Bh4 g5 10. Bg3 Ba7 11. Na3 g4 12. Bh4 Kg7 13. h3 gxf3 14. Qxf3 Be6 15. Bd5 Qe7 16. d4 Bd7 17. Nc2 Nxd5 18. Qg3+ {1-0 Firouzja,A (2744)-Giri,A (2745) Zagreb Superbet Rapid 2024 (4)}) 7... O-O {[%emt 0:00:31]} 8. Bb3 {[%emt 0:00:21]} h6 {[%emt 0:01:26]} 9. Re1 {[%emt 0:01:39]} Re8 {[%emt 0:00:54]} 10. Nbd2 {[%emt 0:06:57]} Be6 {[%emt 0:01:51]} 11. Ba4 {[%emt 0:00:06]} Qb8 {[%emt 0:00:24]} 12. Bxc6 $1 $146 {[%emt 0:02:31][%mdl 8] A top novelty.} ({Predecessor:} 12. Nf1 b5 13. Bc2 Qb6 14. Qe2 Rad8 15. Ng3 d5 16. Nh4 d4 17. Qf3 dxc3 18. bxc3 {½-½ Wang,H (2730)-Cheparinov,I (2709) Wch Rapid St Petersburg 2018 (15)}) 12... bxc6 {[%emt 0:00:57]} 13. Nf1 {[%emt 0:01:18]} Bb6 {[%emt 0:20:08]} 14. Ng3 {[%emt 0:01:59]} a4 {[%emt 0:19:23]} 15. d4 {[%emt 0:08:19]} Qa7 {[%emt 0:13:45]} 16. Be3 {[%emt 0:02:42]} Qa5 {[%emt 0:05:10]} 17. Qc1 {[%emt 0:21:16]} Kh7 {[%emt 0:00:22]} 18. Nh4 {[%emt 0:01:51]} Ng8 {[%emt 0:10:22]} 19. Nhf5 {[%emt 0:09:09]} c5 {[%emt 0:09:16]} 20. dxe5 {[%emt 0:11:59]} Bxf5 {[%emt 0:04:23]} 21. Nxf5 {[%emt 0:00:39]} dxe5 {[%emt 0:01:35]} 22. c4 {[%emt 0:08:10]} Rad8 {[%emt 0:00:24]} 23. Rd1 {[%emt 0:02:55]} Qa8 {[%emt 0:00:23]} 24. Rd5 {[%emt 0:01:08]} c6 {[%emt 0:02:34]} 25. Rxd8 {[%emt 0:00:38]} Rxd8 {[%emt 0:00:17]} 26. Qc2 {[%emt 0:01:14]} Qa6 {[%emt 0:05:35]} 27. Rc1 {[%emt 0:04:20]} Rd7 {[%emt 0:03:35]} 28. a3 {[%emt 0:11:17]} Nf6 {[%emt 0:03:20]} 29. Qe2 {[%emt 0:03:42]} Qc8 {[%emt 0:01:14]} (29... Nxe4 $2 30. Bxh6 Nd6 31. Qxe5 $18 (31. Nxg7 Kxh6 32. Qxe5 Bd8 $18)) 30. Qc2 {[%emt 0:01:26]} Qa6 $1 {[%emt 0:02:03]} 31. Qc3 {[%emt 0:04:54]} Qa5 {[%emt 0:01:50] [#]} 32. b4 $1 {[%emt 0:09:44]} (32. Qxe5 $6 Bc7 33. Qxc5 Qxc5 34. Bxc5 Nxe4 $11) 32... axb3 {[%emt 0:10:29]} 33. Qxb3 {[%emt 0:00:05]} Bc7 {[%emt 0:05:33]} (33... Nxe4 $2 34. Qb1 (34. Qc2 Nf6 $16) 34... Nf6 35. Ne7+ (35. Nxh6+ Kh8 $16) 35... e4 36. Nxc6 $18) 34. g3 {[%emt 0:05:16]} Qa6 {[%emt 0:02:26]} (34... Nxe4 $2 35. Qc2 Nf6 36. Nxh6+ g6 37. a4 $16) 35. Kg2 {[%emt 0:01:00]} Rd8 {[%emt 0:01:53]} 36. Ra1 {[%emt 0:01:47]} Qc8 {[%emt 0:01:15]} (36... Nxe4 $2 37. Qc2 Nf6 (37... Ng5 $2 38. Nxh6+ e4 39. Bxg5 $18) 38. Nxh6+ e4 39. Nxf7 $18) 37. Qc2 {[%emt 0:00:31]} (37. Bxc5 $2 Nxe4 38. Ne7 Qe6 $19 (38... Nxc5 $2 39. Qb1+ g6 40. Nxc8 $18)) 37... Qd7 {[%emt 0:02:32]} 38. Rb1 {[%emt 0:02:14]} Ba5 {[%emt 0:00:39]} 39. Bxc5 {[%emt 0:00:51]} Qd3 {[%emt 0:00:09]} 40. Qxd3 {[%emt 0:00:14]} Rxd3 {[%emt 0:00:01]} 41. Rb7 {[%emt 0:01:15]} (41. f3 $16) 41... Nxe4 $14 {[%emt 0:00:14]} 42. Be3 {[%emt 0:00:44]} Kg6 {[%emt 0:00:35]} (42... Bd2 $14) 43. Ne7+ $18 {[%emt 0:01:12]} Kf6 {[%emt 0:01:00]} 44. Nxc6 {[%emt 0:00:05]} Bd2 $2 {[%emt 0:02:19]} (44... Nd6 {was worth a try.} 45. Nxa5 Nxb7 46. Nxb7 Rxa3) 45. Rxf7+ $18 {[%emt 0:00:34]} Ke6 {[%emt 0:00:02]} ({Don't play} 45... Kxf7 46. Nxe5+ Ke7 47. Nxd3 $18) 46. Re7+ {[%emt 0:00:13]} Kd6 {[%emt 0:00:32]} (46... Kf6 $142 47. Rxe5 Bxe3) 47. Rd7+ $18 {[%emt 0:00:18]} ({But not} 47. Nxe5 Rxa3 48. Bxd2 (48. Rxg7 Bxe3 49. fxe3 Ra2+ 50. Kf3 Ng5+ 51. Rxg5 hxg5 $18) 48... Nxd2 $18) (47. Rxe5 Nf6 $18) 47... Kxd7 {[%emt 0:00:14]} 48. Nxe5+ {[%emt 0:00:03]} Kd6 {[%emt 0:00:03]} 49. Nxd3 {[%emt 0:00:05]} Bxe3 {[%emt 0:00:02]} 50. fxe3 {[%emt 0:00:07]} Nd2 {[%emt 0:00:03]} 51. c5+ {[%emt 0:00:38]} Kd5 {[%emt 0:00:02]} 52. a4 {[%emt 0:00:38]} Nc4 {[%emt 0:00:07]} 53. Kf3 {[%emt 0:00:16]} g5 {[%emt 0:00:01]} 54. e4+ {[%emt 0:03:34]} Kd4 {[%emt 0:00:05]} 55. e5 {[%emt 0:01:00]} Kxd3 {[%emt 0:00:56]} 56. e6 {[%emt 0:00:05]} Ne5+ {[%emt 0:00:31]} 57. Kg2 {[%emt 0:00:06]} Nc6 {[%emt 0:00:08] [#]} 58. a5 $1 {[%emt 0:00:03]} 1-0